bitfinex-derivatives/quotes_SOLF0:USTF0_20241216
["timestamp","ask_amount","ask_price","bid_price","bid_amount"]
[1734367460851,2.56,219.5,219.39,13.19146483]
[1734367461048,1.4801,219.52,219.4,5.07364032]
[1734367461252,2.56,219.54,219.41,5.07364032]
[1734367461451,2.56,219.54,219.49,2.2778]
[1734367461647,2.56,219.54,219.42,1.6066]
[1734367461950,2.56,219.54,219.43,5.07056318]
[1734367462154,2.56,219.54,219.49,2.2778]
[1734367462449,2.56,219.54,219.42,1.6066]
[1734367462651,2.56,219.54,219.49,2.2778]
[1734367463249,2.56,219.54,219.42,1.6066]
[1734367463553,2.2776,219.52,219.43,5.06854279]
[1734367463757,2.56,219.54,219.42,1.6066]
[1734367463953,2.2776,219.51,219.44,2.2783]
[1734367464150,21.04754575,219.53,219.42,1.6066]
[1734367464548,21.04754575,219.53,219.43,2.2784]
[1734367464549,2.2779,219.49,219.43,2.2784]
[1734367464751,2.2779,219.49,219.14,6.29218858]
[1734367464752,2.56,219.48,219.24,55.91677029]
[1734367465060,21.04754575,219.45,219.28,23.98854575]
[1734367465253,21.04754575,219.41,219.29,13.18889146]
[1734367465455,21.04754575,219.37,219.28,2.941]
[1734367465657,2.2794,219.34,219.28,3.7515]
[1734367465954,2.2794,219.34,219.21,1.4695]
[1734367466156,2.2794,219.34,219.23,1.5937]
[1734367466364,23.32714575,219.33,219.26,2.2802]
[1734367466657,21.04754575,219.33,219.18,2.56]
[1734367466857,2.2798,219.3,219.21,2.2807]
[1734367467058,21.04754575,219.33,219.17,1.5937]
[1734367467260,1.6114,219.35,219.2,21.04754575]
[1734367467460,2.56,219.36,219.31,2.2797]
[1734367467655,2.56,219.36,219.24,23.60754575]
[1734367468056,5.41225829,219.38,219.24,23.60754575]
[1734367468257,2.56,219.35,219.24,23.60754575]
[1734367468463,2.56,219.35,219.24,2.56]
[1734367468966,2.56,219.35,219.2,21.04754575]
[1734367469263,2.56,219.35,219.18,5.41499451]
[1734367469264,21.04754575,219.33,219.21,5.06230145]
[1734367469459,2.2797,219.31,219.18,7.97499451]
[1734367469654,2.56,219.3,219.19,5.05970592]
[1734367469862,2.56,219.3,219.18,5.41499451]
[1734367470062,2.56,219.3,219.19,5.06025937]
[1734367470258,2.56,219.3,219.18,5.41499451]
[1734367471163,21.04754575,219.29,219.17,1.5937]
[1734367471564,2.2805,219.24,219.19,2.2809]
[1734367472361,2.2807,219.22,219.17,3.8748]
[1734367472668,2.56,219.25,219.17,1.5937]
[1734367472868,2.56,219.25,219.18,2.281]
[1734367473169,2.56,219.25,219.17,1.5937]
[1734367473365,2.56,219.28,219.23,2.2805]
[1734367473557,2.56,219.28,219.17,1.5937]
[1734367473966,2.56,219.28,219.19,2.2809]
[1734367474261,2.56,219.28,219.17,1.5937]
[1734367474463,2.56,219.28,219.2,2.2808]
[1734367474464,2.2802,219.27,219.2,2.2808]
[1734367474861,2.56,219.28,219.17,1.5937]
[1734367475164,2.56,219.28,219.14,1.4695]
[1734367475661,1.5437,219.32,219.14,22.51704575]
[1734367475858,2.56,219.31,219.14,22.51704575]
[1734367476060,1.5437,219.32,219.15,2.56]
[1734367476358,2.2799,219.3,219.24,2.2804]
[1734367476557,2.56,219.31,219.24,2.2804]
[1734367476759,2.56,219.31,219.18,21.04754575]
[1734367477367,4.8399,219.31,219.24,2.2807]
[1734367477562,4.8399,219.31,219.16,1.4641]
[1734367477563,2.56,219.31,219.16,1.4641]
[1734367478068,2.2803,219.28,219.21,2.2809]
[1734367478262,2.56,219.31,219.16,1.4641]
[1734367478668,2.2805,219.26,219.2,2.2811]
[1734367478863,4.8405,219.26,219.2,2.2811]
[1734367479470,2.56,219.26,219.18,2.2812]
[1734367479666,2.56,219.3,219.16,1.4641]
[1734367479862,2.2801,219.3,219.16,1.4641]
[1734367480167,2.56,219.31,219.16,1.4641]
[1734367480364,2.2802,219.26,219.16,1.4641]
[1734367480768,2.56,219.31,219.16,1.4641]
[1734367480963,2.28,219.29,219.16,1.4641]
[1734367481264,2.56,219.31,219.17,5.01772321]
[1734367481463,2.2803,219.26,219.2,2.2809]
[1734367481665,2.56,219.31,219.16,1.4641]
[1734367482065,2.2802,219.27,219.19,2.2809]
[1734367482264,2.56,219.26,219.14,1.4695]
[1734367482464,1.5437,219.32,219.14,1.4695]
[1734367482465,2.56,219.25,219.14,1.4695]
[1734367482663,2.56,219.24,219.14,1.4695]
[1734367483171,2.2805,219.24,219.19,2.281]
[1734367483373,2.56,219.26,219.14,1.4695]
[1734367483667,2.28,219.29,219.23,2.2805]
[1734367483873,2.56,219.29,219.17,2.56]
[1734367484173,2.56,219.3,219.17,23.60754575]
[1734367484362,4.8398,219.3,219.18,5.01768824]
[1734367484565,2.56,219.3,219.19,5.01768824]
[1734367484872,2.2799,219.29,219.25,2.2803]
[1734367485165,2.56,219.3,219.17,23.60754575]
[1734367485373,4.8399,219.3,219.25,2.2803]
[1734367485579,2.56,219.3,219.17,23.60754575]
[1734367485769,2.56,219.3,219.18,5.0172326]
[1734367485965,2.56,219.3,219.19,5.0172326]
[1734367486170,2.56,219.3,219.24,2.2804]
[1734367486973,2.56,219.3,219.17,23.60754575]
[1734367487182,2.2801,219.28,219.23,2.2805]
[1734367487372,2.56,219.3,219.17,23.60754575]
[1734367487574,2.56,219.3,219.18,13.05438582]
[1734367487872,2.2799,219.29,219.23,2.2804]
[1734367488073,2.56,219.3,219.17,23.60754575]
[1734367488272,4.8399,219.3,219.18,13.05400388]
[1734367488480,2.56,219.3,219.19,13.05400388]
[1734367488672,2.2799,219.29,219.23,2.2806]
[1734367488873,2.2799,219.29,219.17,23.60754575]
[1734367489075,4.5556,219.5,219.21,21.04754575]
[1734367489274,21.04754575,219.45,219.29,21.04754575]
[1734367489481,1.5494,219.44,219.27,2.56]
[1734367489683,1.5494,219.44,219.28,5.02096721]
[1734367489875,1.5494,219.44,219.27,2.56]
[1734367489876,4.0237,219.43,219.29,5.02096721]
[1734367490070,1.4637,219.43,219.3,5.02096721]
[1734367490379,4.1094,219.44,219.31,13.05880048]
[1734367490574,4.8383,219.46,219.33,21.04754575]
[1734367490774,2.56,219.46,219.34,14.65930048]
[1734367490979,2.56,219.46,219.41,2.2787]
[1734367491177,2.56,219.46,219.37,2.56]
[1734367491374,2.56,219.46,219.38,13.06242117]
[1734367491577,2.56,219.46,219.39,5.02400814]
[1734367491773,7.93165763,219.5,219.4,5.02400814]
[1734367491982,7.93165763,219.5,219.41,5.02400814]
[1734367492279,2.56,219.51,219.42,5.02400814]
[1734367492472,1.4637,219.56,219.43,5.02400814]
[1734367492672,1.5494,219.57,219.45,21.04754575]
[1734367492873,1.5494,219.57,219.46,14.66628839]
[1734367493083,1.5494,219.57,219.47,5.02400814]
[1734367493374,1.5494,219.57,219.48,13.06915338]
[1734367493570,1.5022,219.63,219.49,5.02400814]
[1734367493770,21.04754575,219.72,219.53,21.04754575]
[1734367493973,4.1032,219.71,219.53,21.04754575]
[1734367494178,2.276,219.67,219.54,5.02618203]
[1734367494382,4.1032,219.71,219.55,5.02618203]
[1734367494582,4.1032,219.71,219.55,13.06756173]
[1734367494782,4.1032,219.71,219.58,2.2769]
[1734367494783,2.2761,219.66,219.58,2.2769]
[1734367494977,2.56,219.66,219.58,2.2769]
[1734367495281,4.8361,219.66,219.58,2.2769]
[1734367495481,2.56,219.66,219.59,5.02361595]
[1734367495779,2.56,219.68,219.6,5.02266795]
[1734367495977,2.56,219.68,219.61,5.02266795]
[1734367496179,2.56,219.68,219.59,2.2767]
[1734367496382,2.56,219.68,219.6,5.01986768]
[1734367496682,2.56,219.69,219.61,5.01986768]
[1734367496882,2.56,219.69,219.56,22.55964575]
[1734367497279,2.56,219.69,219.57,2.56]
[1734367497685,4.8358,219.69,219.61,2.2766]
[1734367497881,2.56,219.69,219.58,1.5572]
[1734367498378,2.276,219.67,219.58,3.834]
[1734367498579,2.56,219.69,219.58,3.834]
[1734367499477,2.56,219.69,219.59,2.2768]
[1734367499882,2.56,219.69,219.58,1.5572]
[1734367500078,2.276,219.67,219.59,2.2767]
[1734367500285,2.56,219.69,219.58,1.5572]
[1734367500684,2.56,219.69,219.59,2.2767]
[1734367500879,2.56,219.69,219.58,1.5572]
[1734367502087,4.8358,219.69,219.61,2.2766]
[1734367502580,2.56,219.69,219.58,1.5572]
[1734367502887,13.68,219.91,219.6,21.04754575]
[1734367503099,2.2755,219.72,219.64,2.2762]
[1734367503483,2.62,219.73,219.6,21.04754575]
[1734367503688,2.62,219.73,219.58,1.5572]
[1734367503891,2.2758,219.69,219.6,2.2766]
[1734367504090,2.2758,219.69,219.58,1.5572]
[1734367504091,2.62,219.68,219.58,1.5572]
[1734367504285,2.62,219.67,219.58,1.5572]
[1734367504488,2.2763,219.65,219.58,1.5572]
[1734367504890,2.62,219.66,219.58,1.5572]
[1734367505491,2.2764,219.63,219.58,1.5572]
[1734367505992,2.2763,219.64,219.58,1.5572]
[1734367506286,21.04754575,219.69,219.58,1.5572]
[1734367506493,2.62,219.68,219.58,1.5572]
[1734367508193,2.62,219.68,219.53,2.62]
[1734367508393,1.4777,219.67,219.53,2.62]
[1734367509092,1.4777,219.67,219.52,28.20742934]
[1734367509093,2.2765,219.62,219.56,2.2771]
[1734367509288,2.62,219.63,219.52,1.6046]
[1734367509993,2.2769,219.59,219.52,3.8821]
[1734367510195,2.62,219.63,219.52,1.6046]
[1734367510492,2.62,219.63,219.55,2.2772]
[1734367510688,2.62,219.63,219.52,1.6046]
[1734367511093,2.2769,219.59,219.53,2.2774]
[1734367511286,2.62,219.58,219.52,1.6046]
[1734367511693,2.277,219.57,219.52,1.6046]
[1734367512085,2.62,219.58,219.52,1.6046]
[1734367512790,2.2771,219.57,219.52,1.6046]
[1734367512987,2.62,219.58,219.52,1.6046]
[1734367513597,15.77366396,219.58,219.46,1.4931]
[1734367513894,15.77366396,219.58,219.46,6.90787295]
[1734367514095,2.2772,219.55,219.49,2.2778]
[1734367514297,2.62,219.58,219.48,13.15366396]
[1734367515392,15.77366396,219.58,219.46,6.90787295]
[1734367515691,15.77366396,219.58,219.48,13.15366396]
[1734367515692,13.15366396,219.58,219.48,13.15366396]
[1734367516090,13.15366396,219.58,219.46,5.41477295]
[1734367516091,2.62,219.57,219.46,5.41477295]
[1734367516892,2.62,219.57,219.48,13.15366396]
[1734367517187,2.2767,219.6,219.53,2.2774]
[1734367517393,4.8967,219.6,219.53,2.2774]
[1734367517590,4.8967,219.6,219.51,13.15366396]
[1734367517591,2.62,219.62,219.51,13.15366396]
[1734367517896,2.62,219.62,219.54,13.15366396]
[1734367518191,1.5682,219.66,219.54,15.77366396]
[1734367518389,2.62,219.68,219.57,13.15366396]
[1734367518592,2.62,219.68,219.58,1.508]
[1734367518888,15.42946396,219.69,219.62,2.2765]
[1734367519196,18.04946396,219.69,219.62,2.2765]
[1734367520299,2.2759,219.68,219.61,2.2766]
[1734367520700,2.2759,219.68,219.58,1.508]
[1734367520701,13.15366396,219.65,219.58,1.508]
[1734367520995,3.0999,219.73,219.51,13.15366396]
[1734367520996,13.15366396,219.62,219.51,13.15366396]
[1734367521291,13.15366396,219.62,219.52,4.99836846]
[1734367521595,2.62,219.63,219.49,1.5182]
[1734367521596,13.15366396,219.56,219.49,1.5182]
[1734367522192,13.15366396,219.56,219.5,2.2776]
[1734367522495,13.15366396,219.56,219.49,1.5182]
[1734367522700,15.43106396,219.53,219.45,2.2782]
[1734367522892,2.62,219.52,219.45,2.2782]
[1734367523396,2.62,219.52,219.39,2.62]
[1734367523397,2.62,219.52,219.43,13.15366396]
[1734367523597,2.62,219.52,219.42,5.55739076]
[1734367523990,13.15366396,219.5,219.42,7.83599076]
[1734367524200,23.68478334,219.52,219.42,7.83599076]
[1734367524391,23.68478334,219.52,219.42,2.2786]
[1734367524595,23.68478334,219.52,219.38,2.62]
[1734367524596,21.06478334,219.52,219.38,2.62]
[1734367524790,21.06478334,219.52,219.4,5.37577311]
[1734367524995,21.06478334,219.52,219.41,5.01506178]
[1734367525196,23.34228334,219.52,219.45,2.2782]
[1734367525398,21.06478334,219.52,219.45,2.2782]
[1734367525598,2.62,219.54,219.4,5.37577311]
[1734367525796,2.62,219.54,219.44,2.2783]
[1734367526000,2.62,219.54,219.4,5.37577311]
[1734367526199,2.62,219.54,219.41,13.04531819]
[1734367526498,2.2776,219.52,219.44,2.2784]
[1734367526702,2.2776,219.52,219.38,2.62]
[1734367526703,21.06478334,219.52,219.38,2.62]
[1734367526903,3.2184,219.51,219.39,13.05852345]
[1734367527099,3.2184,219.51,219.4,5.02250902]
[1734367527403,26.46790851,219.56,219.41,13.06515228]
[1734367527597,2.62,219.55,219.42,36.74993562]
[1734367527809,2.62,219.55,219.52,2.2775]
[1734367528006,2.62,219.55,219.42,23.68478334]
[1734367528506,2.62,219.55,219.43,5.02738344]
[1734367528710,2.62,219.55,219.44,5.02738344]
[1734367528907,2.2769,219.59,219.45,13.07119695]
[1734367529206,2.62,219.58,219.46,34.13598029]
[1734367529409,2.62,219.6,219.47,20.26469695]
[1734367529613,2.62,219.6,219.48,13.07119695]
[1734367529912,2.62,219.6,219.49,13.07119695]
[1734367530305,23.68478334,219.6,219.5,13.07119695]
[1734367530505,23.68478334,219.6,219.51,13.07119695]
[1734367530701,2.2771,219.57,219.52,5.02738344]
[1734367531006,2.2771,219.57,219.47,3.007]
[1734367531207,2.2771,219.57,219.48,13.09609917]
[1734367531409,2.2771,219.57,219.49,13.09609917]
[1734367531608,23.68478334,219.6,219.5,13.10871544]
[1734367531905,23.68478334,219.6,219.51,5.03959263]
[1734367531906,2.62,219.6,219.51,5.03959263]
[1734367532106,5.3877297,219.62,219.56,2.2771]
[1734367532314,2.6,219.61,219.57,5.03959263]
[1734367532509,2.6,219.61,219.47,3.007]
[1734367532806,2.6,219.61,219.48,13.11847829]
[1734367533010,2.6,219.61,219.49,13.11847829]
[1734367533205,2.6,219.61,219.53,2.2774]
[1734367533517,2.2767,219.6,219.54,13.11847829]
[1734367533817,21.06478334,219.6,219.55,5.04548143]
[1734367534109,21.06478334,219.6,219.47,3.007]
[1734367534110,21.06478334,219.6,219.47,1.5474]
[1734367534310,21.06478334,219.6,219.5,2.2777]
[1734367534514,2.2772,219.56,219.51,5.05577073]
[1734367534812,2.6,219.55,219.47,1.5474]
[1734367535005,2.6,219.55,219.48,7.34059881]
[1734367535006,2.6,219.54,219.48,7.34059881]
[1734367535207,2.6,219.54,219.49,5.06269881]
[1734367535406,1.5474,219.53,219.47,2.278]
[1734367535705,1.5474,219.53,219.48,5.06791436]
[1734367535905,1.5474,219.53,219.47,2.278]
[1734367536313,1.5474,219.53,219.41,1.5809]
[1734367536617,1.5474,219.53,219.42,12.83697005]
[1734367536813,21.06478334,219.6,219.43,4.93732192]
[1734367537012,21.06478334,219.6,219.44,15.43527294]
[1734367537208,1.5474,219.62,219.46,21.06478334]
[1734367537410,4.1474,219.62,219.47,12.83383952]
[1734367537608,4.1474,219.62,219.48,12.83383952]
[1734367537909,4.1474,219.62,219.56,2.277]
[1734367537910,6.4239,219.62,219.56,2.277]
[1734367538307,4.1474,219.62,219.46,21.06478334]
[1734367538612,4.1474,219.62,219.47,12.8291524]
[1734367538911,4.1474,219.62,219.48,12.8291524]
[1734367539217,4.1474,219.62,219.49,15.4291524]
[1734367539417,4.1474,219.62,219.5,15.9908524]
[1734367539612,4.1474,219.62,219.58,2.2768]
[1734367540007,4.1474,219.62,219.5,3.1617]
[1734367540206,4.1474,219.62,219.5,1.6118]
[1734367540412,21.06478334,219.6,219.5,1.6118]
[1734367540714,2.2769,219.58,219.52,2.2775]
[1734367540913,2.6,219.57,219.52,2.2775]
[1734367541309,4.877,219.57,219.5,3.8894]
[1734367541516,4.877,219.57,219.5,1.6118]
[1734367541717,2.2772,219.56,219.44,2.6]
[1734367541918,21.06478334,219.56,219.48,2.2779]
[1734367542420,21.06478334,219.52,219.46,2.2781]
[1734367542712,2.2778,219.5,219.34,21.06478334]
[1734367542929,2.6,219.51,219.36,14.45473445]
[1734367543212,21.06478334,219.48,219.41,2.2786]
[1734367544514,2.2781,219.47,219.41,2.2786]
[1734367544714,2.6,219.46,219.41,2.2786]
[1734367544918,2.6,219.46,219.36,7.19564274]
[1734367544919,2.6,219.46,219.42,2.2786]
[1734367545813,2.6,219.46,219.36,7.19564274]
[1734367546010,2.6,219.46,219.37,4.94149716]
[1734367546210,2.6,219.46,219.36,1.6052]
[1734367546211,21.06478334,219.44,219.36,1.6052]
[1734367546517,2.2787,219.41,219.33,2.2795]
[1734367546720,21.06478334,219.44,219.09,21.41686683]
[1734367546721,21.06478334,219.34,219.09,21.41686683]
[1734367547020,21.06478334,219.29,219.13,1.5896]
[1734367547318,21.06478334,219.29,219.14,12.86242316]
[1734367547319,2.6,219.28,219.14,12.86242316]
[1734367547619,4.8801,219.28,219.17,2.2812]
[1734367547818,4.8801,219.28,219.13,1.5896]
[1734367547819,21.06478334,219.25,219.13,1.5896]
[1734367548119,21.06478334,219.25,219.14,4.9458665]
[1734367548120,2.6,219.24,219.14,4.9458665]
[1734367548314,23.66478334,219.23,219.13,1.5896]
[1734367548513,2.6,219.22,219.13,1.5896]
[1734367548916,2.6,219.21,219.13,1.5896]
[1734367549620,21.06478334,219.23,219.17,2.2811]
[1734367549812,2.6,219.22,219.13,1.5896]
[1734367550012,2.6,219.21,219.13,1.5896]
[1734367550920,2.6,219.21,219.16,2.2812]
[1734367551119,2.6,219.21,219.13,1.5896]
[1734367551620,21.06478334,219.19,219.13,1.5896]
[1734367551919,21.06478334,219.19,219.02,1.4731]
[1734367552216,2.2811,219.18,219.09,2.282]
[1734367552622,21.06478334,219.19,219.07,5.36378907]
[1734367553024,23.34578334,219.19,219.11,2.2818]
[1734367553219,23.34578334,219.19,219.07,5.36378907]
[1734367553426,21.06478334,219.19,219.07,5.36378907]
[1734367554220,21.06478334,219.19,219.03,2.9683]
[1734367554221,21.06478334,219.15,219.03,2.9683]
[1734367554429,21.06478334,219.11,219.03,2.9683]
[1734367554614,2.6,219.1,219.03,2.9683]
[1734367554820,2.6,219.1,218.92,2.6]
[1734367555022,2.6,219.1,219.0,5.42132282]
[1734367555425,2.6,219.1,219.05,2.2824]
[1734367556319,2.6,219.1,219.03,2.2825]
[1734367556516,21.06478334,219.11,219.0,5.42132282]
[1734367556721,21.06478334,219.15,219.0,5.42132282]
[1734367556927,2.6,219.14,219.0,5.42132282]
[1734367557422,2.6,219.13,219.0,5.42132282]
[1734367557822,2.6,219.13,219.01,4.89702638]
[1734367558022,2.6,219.12,219.1,2.2819]
[1734367558327,2.6,219.12,219.01,4.89312016]
[1734367558523,2.6,219.12,219.0,5.42132282]
[1734367559130,2.6,219.12,219.05,2.2824]
[1734367559724,2.2819,219.1,219.03,2.2826]
[1734367560129,21.06478334,219.11,219.03,2.2826]
[1734367560719,21.06478334,219.11,219.02,2.2827]
[1734367560720,2.282,219.09,219.02,2.2827]
[1734367561126,2.68,219.08,218.99,1.5864]
[1734367561430,22.57408334,219.11,219.05,2.2824]
[1734367561627,2.68,219.1,218.99,1.5864]
[1734367562524,2.68,219.1,219.02,2.2827]
[1734367562732,21.06478334,219.07,218.98,1.581]
[1734367562929,2.68,219.1,218.96,2.2834]
[1734367562930,21.06478334,219.03,218.96,2.2834]
[1734367563232,2.68,219.02,218.92,6.84151465]
[1734367564022,2.68,219.01,218.92,6.84151465]
[1734367564225,1.5491,219.09,218.92,6.84151465]
[1734367564226,2.68,219.0,218.92,6.84151465]
[1734367564828,21.06478334,218.98,218.7,187.0]
[1734367565032,1.4887,218.99,218.85,1.5544]
[1734367565335,1.4887,218.99,218.88,2.2841]
[1734367565336,23.34828334,218.95,218.88,2.2841]
[1734367565536,2.68,218.94,218.85,1.5544]
[1734367566125,21.06478334,218.91,218.8,1.6097]
[1734367566328,2.284,218.9,218.8,1.6097]
[1734367566731,21.06478334,218.91,218.8,1.6097]
[1734367566929,2.2842,218.88,218.82,2.2848]
[1734367567130,2.68,218.87,218.77,1.5544]
[1734367567435,23.74478334,218.87,218.77,1.5544]
[1734367567629,23.74478334,218.87,218.81,2.2849]
[1734367567630,26.02908334,218.87,218.81,2.2849]
[1734367567829,23.74478334,218.87,218.77,1.5544]
[1734367568230,23.74478334,218.87,218.77,3.8397]
[1734367568430,21.06478334,218.83,218.72,1.5202]
[1734367568627,2.68,218.82,218.72,1.5202]
[1734367568837,2.68,218.82,218.68,3.1385]
[1734367569028,2.68,218.82,218.7,5.4914696]
[1734367569228,3.0209,218.86,218.71,21.06478334]
[1734367569437,1.5176,218.86,218.71,21.06478334]
[1734367569729,5.59191327,218.91,218.72,1.5278]
[1734367569730,2.68,218.85,218.72,1.5278]
[1734367569935,2.68,218.84,218.72,1.5278]
[1734367570236,2.68,218.83,218.72,1.5278]
[1734367570436,2.68,218.82,218.72,1.5278]
[1734367570740,2.68,218.81,218.72,1.5278]
[1734367571041,2.2851,218.79,218.74,2.2856]
[1734367571336,2.68,218.8,218.68,3.1385]
[1734367571534,21.06478334,218.79,218.68,3.1385]
[1734367571735,21.06478334,218.79,218.68,1.5551]
[1734367572431,2.68,218.78,218.68,1.5551]
[1734367572733,4.9652,218.78,218.72,2.2858]
[1734367572934,2.68,218.77,218.68,1.5551]
[1734367573335,2.2857,218.74,218.68,2.2862]
[1734367573535,2.68,218.76,218.64,1.5743]
[1734367573842,21.06478334,218.79,218.68,2.2862]
[1734367574142,2.68,218.78,218.67,21.06478334]
[1734367574332,1.5896,218.82,218.78,2.2852]
[1734367574534,1.5896,218.82,218.67,21.06478334]
[1734367574732,2.68,218.81,218.67,21.06478334]
[1734367574932,21.06478334,218.87,218.81,2.2849]
[1734367575132,21.06478334,218.87,218.68,2.68]
[1734367575133,2.68,218.85,218.71,21.06478334]
[1734367575339,2.68,218.85,218.72,1.5096]
[1734367575734,21.06478334,218.87,218.73,1.4742]
[1734367575937,2.68,218.86,218.73,1.4742]
[1734367576238,2.68,218.89,218.75,21.06478334]
[1734367576435,2.68,218.93,218.76,1.4952]
[1734367576634,21.06478334,218.9,218.76,1.4952]
[1734367576842,21.06478334,218.86,218.76,1.4952]
[1734367577144,2.68,218.85,218.76,2.2854]
[1734367577345,21.06478334,218.86,218.73,1.4742]
[1734367577544,2.68,218.84,218.73,1.4742]
[1734367577745,2.68,218.84,218.78,2.2852]
[1734367577945,2.68,218.84,218.73,1.4742]
[1734367578137,2.68,218.84,218.82,2.2848]
[1734367578336,2.68,218.84,218.74,2.68]
[1734367578546,2.68,218.84,218.73,1.4742]
[1734367579341,2.68,218.84,218.81,2.2849]
[1734367579538,2.9754,218.89,218.73,1.4742]
[1734367579742,21.06478334,218.9,218.75,21.06478334]
[1734367579943,23.74478334,218.9,218.85,2.2845]
[1734367580142,2.68,218.9,218.77,2.68]
[1734367580343,21.06478334,218.98,218.83,21.06478334]
[1734367580543,2.9754,219.0,218.83,21.06478334]
[1734367580742,2.68,218.99,218.84,1.5745]
[1734367581043,21.06478334,219.02,218.97,2.2832]
[1734367581239,2.68,219.01,218.88,2.68]
[1734367581642,2.91383,219.05,218.91,21.06478334]
[1734367581839,0.23383,219.05,218.92,1.6064]
[1734367582038,0.23383,219.05,218.93,2.68]
[1734367582348,2.68,219.22,218.99,21.06478334]
[1734367582650,2.2813,219.16,219.0,2.68]
[1734367582850,21.06478334,219.18,219.0,4.2545]
[1734367583046,1.5752,219.21,219.0,4.2545]
[1734367583247,2.68,219.2,219.03,21.06478334]
[1734367583450,5.53863022,219.17,219.12,2.2816]
[1734367583943,2.68,219.19,219.0,1.5745]
[1734367584146,2.68,219.19,219.01,2.68]
[1734367584747,2.68,219.19,219.03,21.06478334]
[1734367584943,2.68,219.19,219.01,2.68]
[1734367584944,21.06478334,219.23,219.17,2.2811]
[1734367585147,21.06478334,219.23,219.07,21.06478334]
[1734367585148,2.68,219.26,219.12,2.68]
[1734367585350,2.68,219.26,219.13,2.68]
[1734367585554,4.9603,219.26,219.18,2.281]
[1734367585955,34.31758492,219.23,219.11,2.68]
[1734367586654,34.31758492,219.23,219.16,2.2812]
[1734367587154,34.31758492,219.23,219.11,2.68]
[1734367587649,34.31758492,219.23,219.08,7.05761533]
[1734367587650,34.31758492,219.23,219.09,2.68]
[1734367588355,5.58991918,219.25,219.08,7.05761533]
[1734367588356,34.31758492,219.19,219.08,1.5696]
[1734367588551,34.31758492,219.15,219.06,4.2211]
[1734367588849,1.4984,219.18,219.06,4.2211]
[1734367589556,1.4984,219.18,219.13,2.2816]
[1734367589747,4.3584,219.18,219.06,4.2211]
[1734367589948,2.86,219.18,219.06,4.2211]
[1734367590144,2.86,219.18,219.07,4.88817474]
[1734367590452,2.86,219.18,219.08,4.88817474]
[1734367590646,34.31758492,219.23,219.06,4.2211]
[1734367590847,1.4876,219.32,219.09,34.31758492]
[1734367590848,34.31758492,219.27,219.09,34.31758492]
[1734367591056,38.75498492,219.31,219.13,34.31758492]
[1734367591253,38.75498492,219.31,219.14,5.9762]
[1734367591254,5.49002054,219.27,219.14,5.9762]
[1734367591555,39.80760546,219.27,219.15,4.89238362]
[1734367591754,42.08780546,219.27,219.19,2.2809]
[1734367591957,39.80760546,219.27,219.19,2.2809]
[1734367592253,34.31758492,219.23,219.12,5.37575895]
[1734367592455,2.86,219.22,219.15,2.2813]
[1734367592658,2.86,219.22,219.08,2.86]
[1734367592851,2.86,219.22,219.11,5.36480255]
[1734367593050,5.49002054,219.27,219.11,5.36480255]
[1734367593051,2.86,219.26,219.11,5.36480255]
[1734367593250,2.86,219.26,219.12,4.89781067]
[1734367593451,34.31758492,219.23,219.16,2.2813]
[1734367594055,2.2807,219.22,219.14,2.2814]
[1734367594262,2.2807,219.22,219.08,2.86]
[1734367594455,2.2807,219.22,219.09,4.89946382]
[1734367594660,34.31758492,219.19,219.11,2.2818]
[1734367594858,4.3768,219.18,219.01,34.31758492]
[1734367595052,4.3768,219.18,219.02,4.90194883]
[1734367595257,2.2812,219.17,219.03,4.90194883]